[Event "GER-ch Youth U14 2019"]
[Site "Willingen"]
[Date "2019.06.09"]
[Round "1.2"]
[White "Bethke, Richard"]
[Black "Deutsch, Christoph"]
[Result "1/2-1/2"]
[ECO "C54"]
[WhiteElo "2246"]
[BlackElo "1937"]
[Annotator "NA"]
[PlyCount "101"]
[EventDate "2019.06.07"]
[EventType "swiss"]
[EventRounds "9"]
[EventCountry "GER"]
[SourceTitle "playchess.com"]
[Source "ChessBase"]
[SourceQuality "1"]
[TimeControl "40/5400+30:1800+30"]

1. e4 {[%emt 0:00:00]} e5 {[%emt 0:00:00]} 2. Nf3 {[%emt 0:00:00]} Nc6 {[%emt 0:00:00]} 3. Bc4 {[%emt 0:00:00]} Bc5 {[%emt 0:00:00]} 4. c3 {[%emt 0:00:00]} Nf6 {[%emt 0:00:08]} 5. d3 {[%emt 0:00:00]} O-O {[%emt 0:00:16]} 6. O-O {[%emt 0:00:00]} d6 {[%emt 0:00:10]} 7. h3 {[%emt 0:00:59]} Ne7 {[%emt 0:00:33]} 8. d4 {[%emt 0:06:42]} exd4 {[%emt 0:00:23]} 9. cxd4 {[%emt 0:00:11]} Bb6 {[%emt 0:00:11]} 10. Nc3 {[%emt 0:02:23]} d5 {[%emt 0:01:06]} 11. exd5 {[%emt 0:00:38]} Nexd5 {[%emt 0:01:03]} 12. Bg5 {[%emt 0:03:45]} Nxc3 {[%emt 0:04:27]} 13. bxc3 {[%emt 0:00:06]} Qd6 {[%emt 0:00:16]} 14. Re1 {[%emt 0:05:52]} Bf5 {[%emt 0:05:05]} 15. Ne5 {[%emt 0:03:47]} Nd5 {[%emt 0:05:05]} 16. Qb3 {[%emt 0:03:27]} c6 {[%emt 0:01:20]} 17. Bh4 {[%emt 0:04:06]} Be6 {[%emt 0:06:57]} 18. Bg3 {[%emt 0:07:42]} Qe7 {[%emt 0:05:18]} 19. Nd3 {[%emt 0:01:29]} Rfe8 {[%emt 0:04:57]} 20. a4 {[%emt 0:02:34]} Ba5 {[%emt 0:03:27]} 21. Rac1 {[%emt 0:02:39]} Bb6 {[%emt 0:05:43]} 22. Bxd5 {[%emt 0:04:12]} cxd5 {[%emt 0:00:30]} 23. Nf4 {[%emt 0:03:07]} Qd7 {[%emt 0:01:19]} 24. Re3 {[%emt 0:03:04]} f6 {[%emt 0:04:06]} 25. Rce1 {[%emt 0:01:16]} Bf7 {[%emt 0:00:41]} 26. Qb4 {[%emt 0:01:39]} Rxe3 {[%emt 0:02:45]} 27. Rxe3 {[%emt 0:00:06]} Re8 {[%emt 0:00:10]} 28. Rxe8+ {[%emt 0:04:31]} Bxe8 {[%emt 0:04:19]} 29. a5 {[%emt 0:00:49]} Bc7 {[%emt 0:01:22]} 30. Qc5 {[%emt 0:04:47]} Bxf4 {[%emt 0:00:52]} 31. Bxf4 {[%emt 0:00:06]} a6 {[%emt 0:01:31]} 32. c4 {[%emt 0:07:01]} Bf7 {[%emt 0:01:35]} 33. cxd5 {[%emt 0:02:09]} Bxd5 {[%emt 0:00:34]} 34. f3 {[%emt 0:02:07]} Bc6 {[%emt 0:02:31]} 35. h4 {[%emt 0:04:17]} Qd5 {[%emt 0:05:54]} 36. Qxd5+ {[%emt 0:00:12]} Bxd5 {[%emt 0:00:06]} 37. Kf2 {[%emt 0:00:24]} Kf7 {[%emt 0:00:32]} 38. Bd6 {[%emt 0:01:01]} Ke6 {[%emt 0:01:08]} 39. Bc5 {[%emt 0:00:21]} f5 {[%emt 0:05:02]} 40. h5 {[%emt 0:07:10]} f4 {[%emt 0:05:19]} 41. Bf8 {[%emt 0:37:12]} Kf6 {[%emt 0:30:23]} 42. g3 {[%emt 0:01:54]} fxg3+ {[%emt 0:01:21]} 43. Kxg3 {[%emt 0:00:09]} g5 {[%emt 0:01:29]} 44. Bd6 {[%emt 0:04:13]} Bf7 {[%emt 0:01:04]} 45. h6 {[%emt 0:02:43]} Kf5 {[%emt 0:00:12]} 46. Be5 {[%emt 0:00:50]} Bd5 {[%emt 0:00:22]} 47. Kf2 {[%emt 0:00:30]} Bc6 {[%emt 0:00:31]} 48. Ke3 {[%emt 0:00:11]} Bd5 {[%emt 0:00:17]} 49. Bd6 {[%emt 0:01:04]} Bc6 {[%emt 0:00:20]} 50. Be7 {[%emt 0:00:42]} Bd5 {[%emt 0:00:40]} 51. Bd6 {[%emt 0:00:38] normal} 1/2-1/2

[Event "GER-ch Youth U14 2019"]
[Site "Willingen"]
[Date "2019.06.09"]
[Round "1.3"]
[White "Matthaei, Jakob"]
[Black "Pubantz, Jan"]
[Result "0-1"]
[ECO "B22"]
[WhiteElo "1666"]
[BlackElo "2192"]
[Annotator "NA"]
[PlyCount "70"]
[EventDate "2019.06.07"]
[EventType "swiss"]
[EventRounds "9"]
[EventCountry "GER"]
[SourceTitle "playchess.com"]
[Source "ChessBase"]
[SourceQuality "1"]
[TimeControl "40/5400+30:1800+30"]

1. e4 {[%emt 0:00:00]} c5 {[%emt 0:00:00]} 2. c3 {[%emt 0:00:00]} Nf6 {[%emt 0:03:38]} 3. e5 {[%emt 0:00:00]} Nd5 {[%emt 0:00:13]} 4. d4 {[%emt 0:00:08]} cxd4 {[%emt 0:01:47]} 5. Nf3 {[%emt 0:00:13]} Nc6 {[%emt 0:02:04]} 6. cxd4 {[%emt 0:00:12]} d6 {[%emt 0:00:45]} 7. Bc4 {[%emt 0:02:05]} dxe5 {[%emt 0:00:28]} 8. dxe5 {[%emt 0:00:16]} Nb6 {[%emt 0:00:55]} 9. Qxd8+ {[%emt 0:01:07]} Nxd8 {[%emt 0:00:12]} 10. Bb3 {[%emt 0:10:44]} Be6 {[%emt 0:08:09]} 11. Nbd2 {[%emt 0:05:04]} g6 {[%emt 0:03:54]} 12. O-O {[%emt 0:07:24]} Bg7 {[%emt 0:00:48]} 13. Re1 {[%emt 0:02:20]} O-O {[%emt 0:08:45]} 14. Nd4 {[%emt 0:06:56]} Bd5 {[%emt 0:08:49]} 15. f4 {[%emt 0:14:33]} Rc8 {[%emt 0:05:19]} 16. Ne4 {[%emt 0:11:50]} Nc6 {[%emt 0:01:53]} 17. Nxc6 {[%emt 0:01:52]} Rxc6 {[%emt 0:00:37]} 18. Bxd5 {[%emt 0:00:35]} Nxd5 {[%emt 0:00:05]} 19. Bd2 {[%emt 0:03:12]} Rc2 {[%emt 0:04:10]} 20. Rab1 {[%emt 0:03:28]} f5 {[%emt 0:04:17]} 21. exf6 {[%emt 0:00:13]} exf6 {[%emt 0:01:08]} 22. Rec1 {[%emt 0:04:32]} Rfc8 {[%emt 0:15:43]} 23. Nd6 {[%emt 0:04:04]} R8c7 {[%emt 0:11:40]} 24. Nb5 {[%emt 0:02:32]} R7c5 {[%emt 0:00:17]} 25. Nxa7 {[%emt 0:05:54]} f5 {[%emt 0:01:18]} 26. Rxc2 {[%emt 0:08:58]} Bd4+ {[%emt 0:01:16]} 27. Kf1 {[%emt 0:00:35]} Rxc2 {[%emt 0:00:14]} 28. Nb5 {[%emt 0:00:29]} Rxd2 {[%emt 0:00:25]} 29. Nxd4 {[%emt 0:00:01]} Rxd4 {[%emt 0:00:13]} 30. g3 {[%emt 0:00:01]} Rd2 {[%emt 0:00:42]} 31. Kg1 {[%emt 0:00:22]} Kf7 {[%emt 0:00:15]} 32. a3 {[%emt 0:00:07]} Ke6 {[%emt 0:00:48]} 33. b4 {[%emt 0:00:06]} Ra2 {[%emt 0:00:36]} 34. Rb3 {[%emt 0:00:03]} Re2 {[%emt 0:01:24]} 35. a4 {[%emt 0:00:26]} Re4 {[%emt 0:00:08] normal} 0-1

[Event "GER-ch Youth U14 2019"]
[Site "Willingen"]
[Date "2019.06.09"]
[Round "1.4"]
[White "Colbow, Collin"]
[Black "Schulemann, Gero"]
[Result "1-0"]
[ECO "B43"]
[WhiteElo "2169"]
[BlackElo "1862"]
[Annotator "NA"]
[PlyCount "113"]
[EventDate "2019.06.07"]
[EventType "swiss"]
[EventRounds "9"]
[EventCountry "GER"]
[SourceTitle "playchess.com"]
[Source "ChessBase"]
[SourceQuality "1"]
[TimeControl "40/5400+30:1800+30"]

1. e4 {[%emt 0:00:00]} c5 {[%emt 0:00:00]} 2. Nf3 {[%emt 0:00:00]} e6 {[%emt 0:00:00]} 3. d4 {[%emt 0:00:00]} cxd4 {[%emt 0:00:00]} 4. Nxd4 {[%emt 0:00:00]} a6 {[%emt 0:00:00]} 5. Nc3 {[%emt 0:00:00]} Qc7 {[%emt 0:00:00]} 6. Bd3 {[%emt 0:00:05]} Nf6 {[%emt 0:00:06]} 7. f4 {[%emt 0:00:18]} b5 {[%emt 0:01:34]} 8. e5 {[%emt 0:01:20]} b4 {[%emt 0:00:16]} 9. Nce2 {[%emt 0:01:35]} Nd5 {[%emt 0:01:02]} 10. Be4 {[%emt 0:03:51]} Bb7 {[%emt 0:01:23]} 11. Qd3 {[%emt 0:04:48]} d6 {[%emt 0:04:42]} 12. exd6 {[%emt 0:12:43]} Bxd6 {[%emt 0:00:39]} 13. Qg3 {[%emt 0:12:35]} O-O {[%emt 0:02:13]} 14. Qh3 {[%emt 0:01:46]} Nf6 {[%emt 0:09:06]} 15. Bxb7 {[%emt 0:07:30]} Qxb7 {[%emt 0:00:06]} 16. O-O {[%emt 0:04:20]} Qe4 {[%emt 0:02:52]} 17. Be3 {[%emt 0:11:12]} Nd5 {[%emt 0:04:34]} 18. Rf3 {[%emt 0:00:38]} Nxe3 {[%emt 0:19:11]} 19. Rxe3 {[%emt 0:00:16]} Qd5 {[%emt 0:00:46]} 20. Rd3 {[%emt 0:04:02]} Bc5 {[%emt 0:06:27]} 21. Kh1 {[%emt 0:02:56]} Nc6 {[%emt 0:04:23]} 22. c4 {[%emt 0:10:29]} Qd7 {[%emt 0:06:42]} 23. Rad1 {[%emt 0:07:52]} Nxd4 {[%emt 0:02:01]} 24. Nxd4 {[%emt 0:00:32]} Qc7 {[%emt 0:00:57]} 25. Qg3 {[%emt 0:04:19]} Rad8 {[%emt 0:04:16]} 26. b3 {[%emt 0:00:58]} g6 {[%emt 0:02:37]} 27. Ne2 {[%emt 0:01:49]} Be7 {[%emt 0:02:23]} 28. Qf3 {[%emt 0:00:39]} Rxd3 {[%emt 0:02:37]} 29. Rxd3 {[%emt 0:00:30]} Qa5 {[%emt 0:00:40]} 30. Nc1 {[%emt 0:01:15]} Rd8 {[%emt 0:01:20]} 31. Rxd8+ Bxd8 {[%emt 0:00:32]} 32. Qd3 {[%emt 0:01:41]} Kg7 {[%emt 0:00:34]} 33. g3 {[%emt 0:02:19]} Bf6 {[%emt 0:02:55]} 34. Qc2 {[%emt 0:00:42]} e5 {[%emt 0:04:22]} 35. Ne2 {[%emt 0:01:17]} Qc5 {[%emt 0:02:23]} 36. fxe5 {[%emt 0:01:14]} Bxe5 {[%emt 0:00:37]} 37. Qe4 {[%emt 0:00:16]} Bf6 {[%emt 0:02:46]} 38. Kg2 {[%emt 0:00:43]} Qa5 {[%emt 0:02:49]} 39. Qc2 {[%emt 0:00:34]} Qe5 {[%emt 0:00:33]} 40. Nf4 {[%emt 0:01:23]} Qe3 {[%emt 0:01:33]} 41. Nd5 {[%emt 0:03:57]} Qc5 {[%emt 0:01:20]} 42. Qd2 {[%emt 0:10:18]} Be5 {[%emt 0:02:07]} 43. Nxb4 {[%emt 0:01:37]} Qa5 {[%emt 0:01:49]} 44. a4 {[%emt 0:04:41]} Bf6 {[%emt 0:00:56]} 45. Qd6 {[%emt 0:02:00]} Qh5 {[%emt 0:01:27]} 46. Qd3 {[%emt 0:00:28]} Qc5 {[%emt 0:00:31]} 47. Nd5 {[%emt 0:00:42]} Qa3 {[%emt 0:01:14]} 48. Qc2 {[%emt 0:00:27]} Qa1 {[%emt 0:00:28]} 49. Nxf6 {[%emt 0:02:32]} Qxf6 {[%emt 0:00:13]} 50. c5 {[%emt 0:02:16]} Qc6+ {[%emt 0:00:24]} 51. Kg1 {[%emt 0:00:06]} Kf6 {[%emt 0:02:15]} 52. b4 {[%emt 0:02:51]} Ke5 {[%emt 0:01:08]} 53. Qc3+ {[%emt 0:00:41]} Ke4 {[%emt 0:01:03]} 54. Qc4+ {[%emt 0:00:27]} Ke3 {[%emt 0:00:39]} 55. Qf4+ {[%emt 0:01:07]} Ke2 {[%emt 0:00:44]} 56. Qe5+ {[%emt 0:00:03]} Kd2 {[%emt 0:00:20]} 57. Qd6+ {[%emt 0:00:07] normal} 1-0

[Event "GER-ch Youth U14 2019"]
[Site "Willingen"]
[Date "2019.06.09"]
[Round "1.5"]
[White "Bress, Aaron"]
[Black "Weihrauch, Jakob"]
[Result "0-1"]
[ECO "C78"]
[WhiteElo "1849"]
[BlackElo "2158"]
[Annotator "NA"]
[PlyCount "97"]
[EventDate "2019.06.07"]
[EventType "swiss"]
[EventRounds "9"]
[EventCountry "GER"]
[SourceTitle "playchess.com"]
[Source "ChessBase"]
[SourceQuality "1"]
[TimeControl "40/5400+30:1800+30"]

1. e4 {[%emt 0:00:00]} e5 {[%emt 0:00:00]} 2. Nf3 {[%emt 0:00:00]} Nc6 {[%emt 0:00:00]} 3. Bb5 {[%emt 0:00:30]} a6 {[%emt 0:00:00]} 4. Ba4 {[%emt 0:00:08]} Nf6 {[%emt 0:00:06]} 5. O-O {[%emt 0:02:04]} b5 {[%emt 0:00:05]} 6. Bb3 {[%emt 0:00:08]} Bc5 {[%emt 0:00:06]} 7. c3 {[%emt 0:02:15]} d6 {[%emt 0:00:22]} 8. Re1 {[%emt 0:06:04]} O-O {[%emt 0:01:37]} 9. h3 {[%emt 0:03:52]} h6 {[%emt 0:05:06]} 10. d3 {[%emt 0:09:46]} Re8 {[%emt 0:06:04]} 11. Nbd2 {[%emt 0:03:50]} Bb6 {[%emt 0:10:35]} 12. Nf1 {[%emt 0:03:06]} Be6 {[%emt 0:04:52]} 13. Bc2 {[%emt 0:19:59]} d5 {[%emt 0:03:04]} 14. exd5 {[%emt 0:07:40]} Bxd5 {[%emt 0:06:08]} 15. Ng3 {[%emt 0:06:03]} Qd7 {[%emt 0:05:20]} 16. Ne4 {[%emt 0:09:05]} Nh7 {[%emt 0:06:43]} 17. Ng3 {[%emt 0:08:56]} Rad8 {[%emt 0:15:25]} 18. Be3 {[%emt 0:03:46]} Bxe3 {[%emt 0:03:11]} 19. Rxe3 {[%emt 0:00:22]} f5 {[%emt 0:07:43]} 20. Re1 {[%emt 0:01:09]} Qf7 {[%emt 0:01:47]} 21. Nd2 {[%emt 0:09:05]} Ng5 {[%emt 0:05:54]} 22. a4 {[%emt 0:01:58]} Ne6 {[%emt 0:04:28]} 23. Nf3 {[%emt 0:00:55]} Nf4 {[%emt 0:01:04]} 24. d4 {[%emt 0:00:44]} e4 {[%emt 0:01:20]} 25. Nh2 {[%emt 0:00:30]} Qg6 {[%emt 0:04:33]} 26. Qc1 {[%emt 0:00:33]} Ne6 {[%emt 0:00:49]} 27. Nhf1 {[%emt 0:00:29]} Ne7 {[%emt 0:03:58]} 28. Ne2 {[%emt 0:00:24]} Bc4 {[%emt 0:02:27]} 29. Nf4 {[%emt 0:00:37]} Nxf4 {[%emt 0:00:05]} 30. Qxf4 {[%emt 0:00:14]} Nd5 {[%emt 0:00:03]} 31. Qg3 {[%emt 0:00:31]} Qf7 {[%emt 0:00:32]} 32. Qh2 {[%emt 0:00:42]} b4 {[%emt 0:01:19]} 33. Ne3 {[%emt 0:00:33]} Nxe3 {[%emt 0:00:35]} 34. fxe3 {[%emt 0:00:29]} Bd3 {[%emt 0:00:51]} 35. Rac1 {[%emt 0:00:32]} bxc3 {[%emt 0:00:20]} 36. bxc3 {[%emt 0:00:19]} Rb8 {[%emt 0:00:47]} 37. Red1 {[%emt 0:00:38]} Qc4 {[%emt 0:00:32]} 38. Qf4 {[%emt 0:00:30]} Rf8 {[%emt 0:00:34]} 39. Bxd3 {[%emt 0:00:31]} exd3 {[%emt 0:00:05]} 40. Qf1 {[%emt 0:00:23]} Rb2 {[%emt 0:00:51]} 41. Rxd3 {[%emt 0:17:33]} Rf6 {[%emt 0:04:29]} 42. Rdd1 {[%emt 0:01:32]} Qxa4 {[%emt 0:06:12]} 43. Rb1 {[%emt 0:06:48]} Rc2 {[%emt 0:03:29]} 44. Rdc1 {[%emt 0:02:32]} Rg6 {[%emt 0:04:17]} 45. Kh1 {[%emt 0:01:35]} Qa2 {[%emt 0:04:07]} 46. Rxc2 {[%emt 0:02:41]} Qxc2 {[%emt 0:00:02]} 47. Rc1 {[%emt 0:00:42]} Qd2 {[%emt 0:01:19]} 48. Rd1 {[%emt 0:00:46]} Qc2 {[%emt 0:00:45]} 49. Rc1 {[%emt 0:00:17] normal} 0-1

[Event "GER-ch Youth U14 2019"]
[Site "Willingen"]
[Date "2019.06.09"]
[Round "1.6"]
[White "Gallasch, Jonas"]
[Black "Schauties, Nico Antonio"]
[Result "1-0"]
[ECO "D36"]
[WhiteElo "2137"]
[BlackElo "1866"]
[Annotator "NA"]
[PlyCount "57"]
[EventDate "2019.06.07"]
[EventType "swiss"]
[EventRounds "9"]
[EventCountry "GER"]
[SourceTitle "playchess.com"]
[Source "ChessBase"]
[SourceQuality "1"]
[TimeControl "40/5400+30:1800+30"]

1. d4 {[%emt 0:00:00]} d5 {[%emt 0:00:00]} 2. c4 {[%emt 0:00:00]} e6 {[%emt 0:00:00]} 3. Nc3 {[%emt 0:00:00]} Nf6 {[%emt 0:00:36]} 4. Bg5 {[%emt 0:00:43]} c6 {[%emt 0:01:57]} 5. cxd5 {[%emt 0:00:30]} exd5 {[%emt 0:00:16]} 6. Qc2 {[%emt 0:00:10]} Be7 {[%emt 0:01:46]} 7. e3 {[%emt 0:00:57]} Nbd7 {[%emt 0:01:28]} 8. Bd3 {[%emt 0:00:18]} O-O {[%emt 0:00:15]} 9. Nf3 {[%emt 0:01:32]} Re8 {[%emt 0:03:20]} 10. O-O {[%emt 0:00:35]} Nf8 {[%emt 0:02:59]} 11. h3 {[%emt 0:01:30]} Ne4 {[%emt 0:06:14]} 12. Bf4 {[%emt 0:04:10]} Bd6 {[%emt 0:09:37]} 13. Nxe4 {[%emt 0:12:38]} Bxf4 {[%emt 0:01:21]} 14. exf4 {[%emt 0:00:55]} dxe4 {[%emt 0:03:13]} 15. Bxe4 {[%emt 0:00:42]} Qf6 {[%emt 0:02:32]} 16. f5 {[%emt 0:10:23]} g6 {[%emt 0:18:34]} 17. fxg6 {[%emt 0:03:37]} Nxg6 {[%emt 0:01:35]} 18. Rfe1 {[%emt 0:08:24]} Bxh3 {[%emt 0:26:14]} 19. gxh3 {[%emt 0:07:39]} Nf4 {[%emt 0:03:16]} 20. Kh2 {[%emt 0:05:21]} Qh6 {[%emt 0:03:29]} 21. h4 {[%emt 0:17:09]} Kh8 {[%emt 0:01:40]} 22. Rg1 {[%emt 0:07:26]} f5 {[%emt 0:01:54]} 23. d5 {[%emt 0:06:46]} Ne2 {[%emt 0:01:38]} 24. Qxe2 {[%emt 0:03:11]} Rxe4 {[%emt 0:00:08]} 25. Qd3 {[%emt 0:00:34]} Qf4+ {[%emt 0:03:20]} 26. Kh1 {[%emt 0:00:42]} cxd5 {[%emt 0:02:09]} 27. Rae1 {[%emt 0:02:18]} Rae8 {[%emt 0:01:29]} 28. Qc3+ {[%emt 0:00:30]} d4 {[%emt 0:00:29]} 29. Qxd4+ {[%emt 0:00:07] normal} 1-0

[Event "GER-ch Youth U14 2019"]
[Site "Willingen"]
[Date "2019.06.09"]
[Round "1.7"]
[White "Weidenhoefer, Max"]
[Black "Musiolik, David"]
[Result "0-1"]
[ECO "C01"]
[WhiteElo "1787"]
[BlackElo "2132"]
[Annotator "NA"]
[PlyCount "66"]
[EventDate "2019.06.07"]
[EventType "swiss"]
[EventRounds "9"]
[EventCountry "GER"]
[SourceTitle "playchess.com"]
[Source "ChessBase"]
[SourceQuality "1"]
[TimeControl "40/5400+30:1800+30"]

1. e4 {[%emt 0:00:00]} e6 {[%emt 0:00:00]} 2. d4 {[%emt 0:00:00]} d5 {[%emt 0:00:00]} 3. exd5 {[%emt 0:00:00]} exd5 {[%emt 0:00:00]} 4. Bd3 {[%emt 0:00:06]} Nc6 {[%emt 0:00:00]} 5. Ne2 {[%emt 0:00:40]} Nb4 {[%emt 0:16:37]} 6. c3 {[%emt 0:07:51]} Nxd3+ {[%emt 0:00:42]} 7. Qxd3 {[%emt 0:00:03]} Bd6 {[%emt 0:01:40]} 8. Bf4 {[%emt 0:13:13]} Ne7 {[%emt 0:02:31]} 9. O-O {[%emt 0:08:13]} O-O {[%emt 0:02:22]} 10. Bxd6 {[%emt 0:09:50]} Qxd6 {[%emt 0:00:15]} 11. Ng3 {[%emt 0:00:41]} f5 {[%emt 0:05:00]} 12. f4 {[%emt 0:06:42]} b6 {[%emt 0:10:17]} 13. Nd2 {[%emt 0:17:09]} c5 {[%emt 0:03:33]} 14. Qe3 {[%emt 0:08:59]} Ng6 {[%emt 0:16:20]} 15. dxc5 {[%emt 0:07:40]} bxc5 {[%emt 0:00:58]} 16. Nb3 {[%emt 0:01:12]} Ba6 {[%emt 0:01:44]} 17. Rf2 {[%emt 0:01:51]} Rac8 {[%emt 0:01:50]} 18. Re1 {[%emt 0:00:37]} Bc4 {[%emt 0:01:22]} 19. Qe6+ {[%emt 0:04:57]} Qxe6 {[%emt 0:02:42]} 20. Rxe6 {[%emt 0:00:01]} Rf7 {[%emt 0:03:43]} 21. Nc1 {[%emt 0:01:10]} d4 {[%emt 0:00:56]} 22. Rd6 {[%emt 0:01:11]} Re8 {[%emt 0:02:43]} 23. Nge2 {[%emt 0:01:34]} Rfe7 {[%emt 0:01:46]} 24. Kf1 {[%emt 0:01:26]} dxc3 {[%emt 0:03:56]} 25. bxc3 {[%emt 0:01:55]} Re3 {[%emt 0:00:54]} 26. g3 {[%emt 0:00:56]} Rxc3 {[%emt 0:00:27]} 27. Rd1 {[%emt 0:00:51]} Rc2 {[%emt 0:00:37]} 28. Ke1 {[%emt 0:01:13]} Nf8 {[%emt 0:00:39]} 29. Nd3 {[%emt 0:00:58]} Re3 {[%emt 0:01:02]} 30. Ndc1 {[%emt 0:00:39]} Ne6 {[%emt 0:01:07]} 31. Kf1 {[%emt 0:01:52]} Nd4 {[%emt 0:00:37]} 32. Re1 {[%emt 0:01:02]} Nxe2 {[%emt 0:00:08]} 33. Nxe2 {[%emt 0:00:06]} Rxa2 {[%emt 0:00:05] normal} 0-1

[Event "GER-ch Youth U14 2019"]
[Site "Willingen"]
[Date "2019.06.09"]
[Round "1.8"]
[White "Lutz, Ruben"]
[Black "Bornholdt, Joa Max"]
[Result "1-0"]
[ECO "A40"]
[WhiteElo "2055"]
[BlackElo "1754"]
[Annotator "NA"]
[PlyCount "103"]
[EventDate "2019.06.07"]
[EventType "swiss"]
[EventRounds "9"]
[EventCountry "GER"]
[SourceTitle "playchess.com"]
[Source "ChessBase"]
[SourceQuality "1"]
[TimeControl "40/5400+30:1800+30"]

1. d4 {[%emt 0:00:00]} g6 {[%emt 0:00:00]} 2. Nf3 {[%emt 0:00:01]} Bg7 {[%emt 0:00:00]} 3. c3 {[%emt 0:00:52]} d6 {[%emt 0:00:00]} 4. Bf4 {[%emt 0:02:05]} Nd7 {[%emt 0:01:10]} 5. Nbd2 {[%emt 0:03:49]} e5 {[%emt 0:03:01]} 6. dxe5 {[%emt 0:00:35]} dxe5 {[%emt 0:05:53]} 7. Bg3 {[%emt 0:06:30]} Ne7 {[%emt 0:02:23]} 8. e4 {[%emt 0:00:36]} O-O {[%emt 0:01:45]} 9. Bc4 {[%emt 0:00:52]} Kh8 {[%emt 0:09:09]} 10. h4 {[%emt 0:21:03]} h6 {[%emt 0:08:35]} 11. Qe2 {[%emt 0:00:10]} a6 {[%emt 0:03:48]} 12. Bb3 {[%emt 0:11:54]} Nc6 {[%emt 0:04:18]} 13. Nc4 {[%emt 0:01:13]} b5 {[%emt 0:05:03]} 14. Ne3 {[%emt 0:00:37]} Na5 {[%emt 0:03:15]} 15. Bc2 {[%emt 0:03:11]} Nb7 {[%emt 0:05:46]} 16. a4 {[%emt 0:02:05]} bxa4 {[%emt 0:06:17]} 17. Bxa4 {[%emt 0:00:23]} Nbc5 {[%emt 0:01:57]} 18. Bc6 {[%emt 0:05:38]} Bb7 {[%emt 0:04:33]} 19. Bxb7 {[%emt 0:00:21]} Nxb7 {[%emt 0:00:01]} 20. O-O {[%emt 0:06:38]} Nbc5 {[%emt 0:04:51]} 21. Nc4 {[%emt 0:00:40]} Qe7 {[%emt 0:02:52]} 22. b4 {[%emt 0:01:18]} Nb7 {[%emt 0:02:15]} 23. Rfd1 {[%emt 0:03:10]} Rfc8 {[%emt 0:05:23]} 24. Ra2 {[%emt 0:07:37]} c5 {[%emt 0:04:30]} 25. Rad2 {[%emt 0:07:24]} Rd8 {[%emt 0:02:20]} 26. Rxd7 {[%emt 0:00:26]} Rxd7 {[%emt 0:00:01]} 27. Rxd7 {[%emt 0:00:02]} Qxd7 {[%emt 0:00:09]} 28. Nb6 {[%emt 0:00:05]} Qd8 {[%emt 0:00:13]} 29. Nxa8 {[%emt 0:00:06]} Qxa8 {[%emt 0:00:02]} 30. Bxe5 {[%emt 0:01:55]} cxb4 {[%emt 0:02:30]} 31. cxb4 {[%emt 0:02:10]} Bxe5 {[%emt 0:02:04]} 32. Nxe5 {[%emt 0:00:05]} Kg8 {[%emt 0:02:03]} 33. Ng4 {[%emt 0:02:19]} Qf8 {[%emt 0:07:02]} 34. Qxa6 {[%emt 0:01:57]} Qxb4 {[%emt 0:00:07]} 35. Qa8+ {[%emt 0:04:27]} Kg7 {[%emt 0:01:08]} 36. Qa1+ {[%emt 0:00:06]} Kf8 {[%emt 0:00:57]} 37. Qh8+ {[%emt 0:00:17]} Ke7 {[%emt 0:00:26]} 38. Qf6+ {[%emt 0:01:01]} Ke8 {[%emt 0:01:26]} 39. Nxh6 {[%emt 0:03:31]} Nd8 {[%emt 0:01:40]} 40. e5 {[%emt 0:02:07]} Qc4 {[%emt 0:00:25]} 41. Qh8+ {[%emt 0:30:37]} Kd7 {[%emt 0:00:50]} 42. g3 {[%emt 0:00:00]} Qc2 {[%emt 0:03:47]} 43. Ng8 {[%emt 0:00:00]} Qc1+ {[%emt 0:03:50]} 44. Kh2 {[%emt 0:00:00]} Qc5 {[%emt 0:00:15]} 45. Nf6+ {[%emt 0:00:00]} Kc8 {[%emt 0:02:22]} 46. Ne4 {[%emt 0:00:00]} Qc2 {[%emt 0:01:08]} 47. Nd6+ {[%emt 0:00:00]} Kc7 {[%emt 0:00:30]} 48. Qf6 {[%emt 0:00:00]} Qa2 {[%emt 0:00:44]} 49. Nb5+ {[%emt 0:00:00]} Kc8 {[%emt 0:00:40]} 50. Qb6 {[%emt 0:00:00]} Ne6 {[%emt 0:02:39]} 51. Nd6+ {[%emt 0:00:00]} Kd7 {[%emt 0:00:15]} 52. Qb5+ {normal} 1-0

[Event "GER-ch Youth U14 2019"]
[Site "Willingen"]
[Date "2019.06.09"]
[Round "1.9"]
[White "Elsner, Robert"]
[Black "Arakelian, Aik"]
[Result "0-1"]
[ECO "B40"]
[WhiteElo "1745"]
[BlackElo "1911"]
[Annotator "NA"]
[PlyCount "46"]
[EventDate "2019.06.07"]
[EventType "swiss"]
[EventRounds "9"]
[EventCountry "GER"]
[SourceTitle "playchess.com"]
[Source "ChessBase"]
[SourceQuality "1"]
[TimeControl "40/5400+30:1800+30"]

1. Nf3 {[%emt 0:00:00]} c5 {[%emt 0:00:00]} 2. e4 {[%emt 0:00:00]} e6 {[%emt 0:00:27]} 3. d4 {[%emt 0:00:00]} cxd4 {[%emt 0:00:12]} 4. Nxd4 {[%emt 0:00:00]} Bc5 {[%emt 0:00:23]} 5. Nb3 {[%emt 0:07:49]} Bb6 {[%emt 0:00:10]} 6. Nc3 {[%emt 0:00:59]} Ne7 {[%emt 0:03:25]} 7. Bf4 {[%emt 0:06:48]} O-O {[%emt 0:01:19]} 8. Bd6 {[%emt 0:00:18]} f5 {[%emt 0:02:07]} 9. exf5 {[%emt 0:25:52]} Nxf5 {[%emt 0:03:24]} 10. Bxf8 {[%emt 0:02:25]} Qxf8 {[%emt 0:01:44]} 11. Qf3 {[%emt 0:00:56]} Nc6 {[%emt 0:05:55]} 12. g4 {[%emt 0:08:25]} Ne5 {[%emt 0:06:37]} 13. Qe2 {[%emt 0:01:47]} Nh4 {[%emt 0:17:48]} 14. O-O-O {[%emt 0:09:20]} Nhf3 {[%emt 0:04:45]} 15. Bg2 {[%emt 0:11:54]} d5 {[%emt 0:04:57]} 16. Bxf3 {[%emt 0:02:44]} Nxf3 {[%emt 0:02:14]} 17. Kb1 {[%emt 0:01:14]} Bd7 {[%emt 0:01:17]} 18. Rd3 {[%emt 0:03:30]} Nh4 {[%emt 0:01:05]} 19. Rh3 {[%emt 0:00:43]} Ng6 {[%emt 0:00:14]} 20. Rf3 {[%emt 0:00:28]} Qd6 {[%emt 0:01:18]} 21. h3 {[%emt 0:02:20]} Ne5 {[%emt 0:01:52]} 22. Rg3 {[%emt 0:00:33]} Rf8 {[%emt 0:00:01]} 23. Rf1 {[%emt 0:01:25]} Rf4 {[%emt 0:02:51] normal} 0-1